Cogmind - Beta 14 @@@ ROGUE MODE // 2024.09.21 @ 20:06:05 Player: Mallow Result: Destroyed by as-78646 with Assembled Heavy Rifle Performance ------------- Evolutions (0) 0 Regions Visited (2) 400 Robots Destroyed (19) 95 Value Destroyed (451) 451 Prototype IDs (0) 0 Alien Tech Used (0) 0 Bonus (0) 0 TOTAL SCORE: 946 Bonus ------- None Cogmind --------- Core Integrity 0/250 Matter 300/300 Energy 250/250 System Corruption 1% Temperature Cool (0) Movement Treading (160) Location -10/Mines Parts ------- > --- POWER (1) -------- Ion Engine > --- PROPULSION (2) --- Light Treads > --- UTILITY (2) ------ Medium Storage Unit > --- WEAPON (2) ------- Light Assault Rifle > --- INVENTORY (10) --- Ion Engine Light Ion Engine Light Nuclear Core Medium Storage Unit Structural Scanner Terrain Scanner Hacking Suite Peak State ------------ > --- POWER ------------ Ion Engine > --- PROPULSION ------- Light Treads Light Treads > --- UTILITY ---------- Medium Storage Unit Light Armor Plating > --- WEAPON ----------- Assault Rifle Assault Rifle > --- INVENTORY -------- Ion Engine Light Ion Engine Light Nuclear Core Small Storage Unit Medium Storage Unit Structural Scanner Terrain Scanner Light Assault Rifle [Rating: 8] Favorites ----------- Power Ion Engine Engine Ion Engine Propulsion Light Treads Treads Light Treads Utility Light Armor Plating Device Structural Scanner Storage Small Storage Unit Protection Light Armor Plating Weapon Assault Rifle Ballistic Gun Assault Rifle Build | -11 -10 -10 ------- Run | Yrd Mat Min Slots Evolved . | . . . Power . | . . . Propulsion . | . . . Utility . | . . . Weapon . | . . . Parts Attached 13 | 6 6 1 Power 2 | 1 1 . Engine 2 | 1 1 . Core . | . . . Reactor . | . . . Propulsion 2 | 2 . . Treads 2 | 2 . . Leg . | . . . Wheel . | . . . Hover . | . . . Flight . | . . . Utility 5 | 1 4 . Device 1 | . 1 . Storage 3 | 1 2 . Processor . | . . . Hackware . | . . . Protection 1 | . 1 . Artifact . | . . . Weapon 4 | 2 1 1 Energy Gun . | . . . Energy Cannon . | . . . Ballistic Gun 4 | 2 1 1 Ballistic Cannon . | . . . Launcher . | . . . Special Weapon . | . . . Impact Weapon . | . . . Slashing Weapon . | . . . Piercing Weapon . | . . . Special Melee Weapon . | . . . Unidentified Prototypes . | . . . Parts Lost 4 | . . 4 Power . | . . . Propulsion 1 | . . 1 Utility 1 | . . 1 Weapon 2 | . . 2 Highest Loss Streak 3 | . . 3 To Critical Strikes . | . . . Average Slot Usage (%) 98 | . 98 100 Engine 14 | . 14 14 Treads 28 | . 28 28 Device 3 | . 4 . Storage 14 | . 14 14 Protection 9 | . 7 14 Ballistic Gun 28 | . 28 28 Peak Build Rating 8 | 6 8 8 Average Rating 7 | 4 6 7 On Entrance 4 | . 6 8 Naked Turns . | . . . Heaviest Build 22 | 13 22 21 Greatest Support 40 | 40 40 40 Greatest Overweight (x) . | . . . Average Overweight (x) . | . . . Largest Inventory Capacity 10 | 8 10 10 Average Capacity 8 | 7 8 10 Most Carried 8 | 1 8 8 Average Carried 4 | . 4 7 Final Capacity 10 | 8 10 10 Final Carried 8 | 1 8 7 Class Distribution -------------------- 100% | Mutant Dominant Class ---------------- Mutant | -10/Materials Mutant | -10/Mines Resources | -11 -10 -10 ----------- Run | Yrd Mat Min Matter Collected 641 | 246 374 21 Remotely . | . . . Salvage Created 605 | . 550 55 Parts 52 | . 45 7 Haulers Intercepted . | . . . Recyclers Shooed . | . . . Parts Field Recycled . | . . . Retrieved Matter . | . . . Parts Self-Destructed . | . . . Prevented . | . . . Kills | -11 -10 -10 ------- Run | Yrd Mat Min Combat Hostiles Destroyed 14 | . 10 4 Melee 1 | . . 1 Guns 13 | . 10 3 Classes Destroyed 7 | . 5 2 Worker 2 | . 2 . Builder 1 | . 1 . Operator 2 | . 2 . Watcher 1 | . 1 . Swarmer 3 | . . 3 Grunt 10 | . 10 . Assembled 1 | . . 1 Best Kill Streak 3 | . 2 3 Combat Bots Only 3 | . 2 3 Max Kills in Single Turn 2 | . 1 2 Gunslinging 1 | . . 1 Exploded . | . . . Melee 1 | . . 1 Uniques/NPCs Destroyed . | . . . Combat | -11 -10 -10 -------- Run | Yrd Mat Min Hostile Shots Fired 96 | . 63 33 Missed 22 | . 10 12 Damage Taken 988 | . 657 331 Core 253 | . 169 84 Absorbed by Shields . | . . . Core Remaining (%) 100 | 100 . . Volleys Fired 55 | . 51 4 Largest 2 | . 2 2 Hottest 40 | . 40 40 Shots Fired 110 | . 102 8 Gun 110 | . 102 8 Cannon . | . . . Launcher . | . . . Special . | . . . Kinetic 110 | . 102 8 Thermal . | . . . Explosive . | . . . Electromagnetic . | . . . Robot Hit Streak 8 | . 8 8 Robot Miss Streak 4 | . 4 3 Penetration Max . | . . . Secondary Targets 2 | . . 2 Max Gunslinging Chain 1 | . . 1 Shots Hit Robots 70 | . 67 3 Core Hits 36 | . 32 4 Critical Kills . | . . . Critical Parts Destroyed . | . . . Critical Strikes . | . . . Melee Attacks . | . . . Impact . | . . . Slashing . | . . . Piercing . | . . . Sneak Attacks . | . . . Combat Hostiles . | . . . Follow-up Attacks . | . . . Damage Inflicted 979 | . 911 68 Guns 950 | . 905 45 Cannons . | . . . Explosions . | . . . Melee . | . . . Ramming 29 | . 6 23 Kinetic 950 | . 905 45 Thermal . | . . . Explosive . | . . . Electromagnetic . | . . . Impact . | . . . Slashing . | . . . Piercing . | . . . Highest Corruption 1 | . . 1 Average Corruption 1 | . . 1 Corruption Purged . | . . . Corruption Blocked . | . . . Overload Shots . | . . . Overflow Damage . | . . . Projectiles . | . . . Explosions . | . . . Melee . | . . . Knockbacks . | . . . Impact . | . . . Kinetic . | . . . Secondary . | . . . Self-Inflicted Damage . | . . . Shots . | . . . Rammed 6 | . 2 4 Targets Rammed 6 | . 2 4 Kicked . | . . . Crushed . | . . . Highest Temperature 8 | . 8 6 Average Temperature 2 | . 2 4 Received Heat Transfer 400 | . 360 40 Siege Activations . | . . . Robots Corrupted . | . . . Combat Hostiles . | . . . Parts Fried . | . . . Impact Corruptions . | . . . Robots Melted . | . . . Combat Hostiles . | . . . Parts Melted . | . . . Heat Transferred . | . . . Parts Sabotaged . | . . . Parts Stolen . | . . . Parts Stripped . | . . . Power Chain Reactions . | . . . Alert | -11 -10 -10 ------- Run | Yrd Mat Min Peak Influence 163 | . 163 82 Initial 7 | . . 7 Average 53 | . 50 66 Maximum Alert Level . | . . . Low Security (%) 100 | 100 100 100 Level 1 . | . . . Level 2 . | . . . Level 3 . | . . . Level 4 . | . . . Level 5 . | . . . High Security . | . . . Max Security . | . . . Squads Dispatched 3 | . 3 . Investigation 1 | . 1 . Extermination . | . . . Reinforcement 2 | . 2 . Assault . | . . . Garrison . | . . . Intercept . | . . . Searches Triggered . | . . . Construction Impeded . | . . . Haulers Reinforced . | . . . Active Scanning Responses . | . . . Cargo Convoy Interrupts . | . . . Stealth | -11 -10 -10 --------- Run | Yrd Mat Min Distress Signals 1 | . 1 . Communications Jammed . | . . . Distress Signals . | . . . Times Spotted 43 | . 23 20 Peak Tracking Total 20 | . 4 20 Tactical Retreats 1 | . 1 . Traps | -11 -10 -10 ------- Run | Yrd Mat Min Traps Triggered 1 | . 1 . Indirectly . | . . . Trap Hack Attempts . | . . . Triggered . | . . . Disarmed . | . . . Reprogrammed . | . . . Reused . | . . . Traps Extracted . | . . . Installed . | . . . Triggered . | . . . Machines | -11 -10 -10 ---------- Run | Yrd Mat Min Machines Disabled . | . . . Max in Single Turn . | . . . Machines Repaired . | . . . Machines Dismantled . | . . . Machines Sabotaged . | . . . Overloaded Fab Kills . | . . . Hacking | -11 -10 -10 --------- Run | Yrd Mat Min Machines Accessed 1 | . 1 . Terminals . | . . . Fabricators . | . . . Repair Stations . | . . . Recycling Units 1 | . 1 . Scanalyzers . | . . . Garrison Access . | . . . Total Hacks 2 | . 2 . Successful 2 | . 2 . Failed . | . . . Catastrophic . | . . . Database Lockouts . | . . . Manual . | . . . Terminals . | . . . Fabricators . | . . . Repair Stations . | . . . Recycling Units 2 | . 2 . Scanalyzers . | . . . Garrison Access . | . . . Terminal Hacks . | . . . Fabricator Hacks . | . . . Repair Station Hacks . | . . . Recycling Unit Hacks 2 | . 2 . Retrieve Components 2 | . 2 . Scanalyzer . | . . . Garrison Access Hacks . | . . . Unauthorized Hacks . | . . . Terminals . | . . . Fabricators . | . . . Repair Stations . | . . . Recycling Units . | . . . Scanalyzers . | . . . Garrison Access . | . . . Data Cores Recovered . | . . . Used . | . . . Hacking Detections . | . . . Full Trace Events . | . . . Feedback Events . | . . . Feedback Blocked . | . . . Robot Schematics Acquired . | . . . Robots Built . | . . . Authchips . | . . . Time . | . . . Total Robot Build Rating . | . . . Part Schematics Acquired . | . . . Parts Built . | . . . Authchips . | . . . Time . | . . . Total Part Build Rating . | . . . Parts Repaired . | . . . Time . | . . . Parts Recycled . | . . . Recycled Matter . | . . . Retrieved Matter . | . . . Retrieved Components 2 | . 2 . Parts Scanalyzed . | . . . Part Schematics Acquired . | . . . Parts Damaged . | . . . Bothacking | -11 -10 -10 ------------ Run | Yrd Mat Min Used RIF Installer . | . . . Robots Hacked . | . . . Non-combat . | . . . Combat . | . . . Robot Hacks Applied . | . . . Relay Couplers Released . | . . . Fabnet Peak Effective % . | . . . Robots Rewired . | . . . Allies Hacked . | . . . Hacks Repelled . | . . . Allies | -11 -10 -10 -------- Run | Yrd Mat Min Total Allies 3 | . . 3 Largest Group 3 | . . 3 Highest-Rated Group 40 | . . 40 Highest-Rated Ally 16 | . . 16 Total Orders . | . . . Ally Attacks 8 | . . 8 Total Damage 37 | . . 37 Kills . | . . . Allies Corrupted . | . . . Allies Melted . | . . . Intel | -11 -10 -10 ------- Run | Yrd Mat Min Robot Analysis Total . | . . . Derelict Logs Recovered 1 | . . 1 Drone Launches . | . . . Drone Recoveries . | . . . Exploration | -11 -10 -10 ------------- Run | Yrd Mat Min Turns Passed 1846 | 66 1294 486 Spaces Moved 1033 | 38 703 292 Core 3 | 3 . . Treads 1030 | 35 703 292 Legs . | . . . Wheels . | . . . Hover . | . . . Flight . | . . . Fastest Speed 50 | 50 160 160 Average Speed 159 | 151 160 160 Slowest Speed 160 | 160 160 160 Overloaded Moves . | . . . Propulsion Burnouts . | . . . Robots Hopped . | . . . Cave-ins Triggered . | . . . Exploration Rate (%) 45 | 4 76 56 Regions Visited 2 Branch Regions 1 Pre-discovered Areas . | . . . Known Exits Taken . | . . . Unknown Exits Taken 2 | 1 1 . Scrap Searched 1 | . . 1 Spaces Dug . | . . . Terrain Destroyed . | . . . Melee . | . . . Projectile . | . . . AOE . | . . . Terrain Rammed . | . . . Walls Destroyed . | . . . Machines Disabled . | . . . Actions | -11 -10 -10 --------- Run | Yrd Mat Min Total 1113 | 44 768 301 Wait . | . . . Move 1031 | 37 702 292 Hop . | . . . Pick Up 5 | 1 4 . Fast Attach 9 | 6 3 . Attach 1 | . . 1 Detach 1 | . 1 . Swap 3 | . 3 . Drop 2 | . 2 . Fire 55 | . 51 4 Melee . | . . . Ram . | . . . Kick . | . . . Crush 6 | . 2 4 Escape Stasis . | . . . Rewire . | . . . Trap . | . . . Miscellaneous . | . . . Route ------- -11/Scrapyard -10/Materials (discovered 3 exits: [*Mat x2] / [*Min]) -10/Mines (discovered 1 exit: [*Mat]) History --------- Turn | Location | Event 9 | -11/Scrapyard | Discovered new exit (range 15) 67 | -11/Scrapyard | Entered Materials 220 | -10/Materials | Discovered new exit (range 7) 305 | -10/Materials | Discovered new exit (range 13) 312 | -10/Materials | Build established: Mutant 506 | -10/Materials | Core integrity fell below 50% 1018 | -10/Materials | Discovered new exit (range 4) 1361 | -10/Materials | Entered Mines 1541 | -10/Mines | Assisted by bots powering up and referring to "LRC-V3" 1562 | -10/Mines | Discovered new exit (range 11) 1613 | -10/Mines | Learned Materials stockpile data 1827 | -10/Mines | Assembled infested the area 1846 | -10/Mines | Core integrity fell below 20% 1847 | -10/Mines | Destroyed by as-78646 with Assembled Heavy Rifle Last Messages --------------- K-01 Serf collects debris. Searching scrap... Found Hcp. Storage Unit. Found 58 Matter. Trooper 1a: "Hello LRC-V3. What is your command?" Mercenary 1a: "Hello LRC-V3. What is your command?" Trooper 1b: "Hello LRC-V3. What is your command?" EXIT=FOUND Acquired derelict log, extracted data. Data stored: Materials stockpile data. Slammed into K-01 Serf. Slammed into T-07 Excavator. Slammed into K-01 Serf. ALERT: Infestation in the mines, dispatching Demolisher response squad. Assault Rifle destroyed. Lgt. Treads destroyed. Lgt. Armor Plating destroyed. System corrupted by crushing effect (+1). Slammed into as-77487. as-77487 destroyed. Map ----- +----------------------------------------------------+ | ???## ##??# #?????# #### #??????????? | | ??## #### #?????# ## #####??????????? | | ??# ## #??????# ######### #??????????????? | | ??# ##?????# #??????# #??????????????? | | ??## ####### #??????# #??????????????? | | ???# ## #??????# ##??????????????? | | ???# #??????# #???????????????? | | ???# ### ##?????# #???????????????? | | ???## ##?## #?????# #???????????????? | | ????#### ##??## #?????# #???????????????? | | ###????## #???# ##?????# #???????????????? | | ##????## #??## ##??????# #???????????????? | | ##????# #??# ##???????# #???????????????? | | ###?## #?# ##??????### #???????????????? | | ### #?## ##???????# % #???????????????? | | #??####????????# ####???????????????? | | #?????????####?# #??????????????????? | | ## ##????????# ###%#??????????????????? | | ##### #????????# ##%#??????????????????? | | ##???#####????????# =!###????????????????? | | ##?????????????????## ##???????????????? | | ##???????????????????# a #???????????????? | | #????????????????????# a## #??????????????? | | ##????????????????????# a### #?????????????? | | ###?????????????????????#a #?? #?????????????? | | ????????????????????????#@ #?? ???????????? | | ??????????????????????? #?? #####??????????? | | ????????????????????? a#?? ###??????????????? | | ????????????????????######a ?? ##????????????????? | | ????????????????????????? a! ? #?????????????????? | | ????????????????????????? #?????????????????? | | ????????????????????????? a ?#?????????????????? | | ????????????????????????? ###??????????????????? | | ????????????????????????? ##????????????????????? | | ????????????????????????? #?????????????????????? | | ????????????????????????? #?????????????????????? | | ????????????????????????? ?????????????????????? | | ??????????????????????????? ?????????????????????? | | ??????????????????????????? ?????????????????????? | | ??????????????????????????? ?????????????????????? | | ?????????????????????????????????????????????????? | | ?????????????????????????????????????????????????? | | | | | | | | | | | | | | | | | +----------------------------------------------------+ Best States ------------- Heat Dissipation 25 Energy Generation 10 Energy Capacity 250 Matter Stores 300 Matter Capacity 300 Sight Range 16 Terrain Scan Density 10 Armor Coverage 150 Evasion (%) 40 Recoil Reduction 2 Item Schematics ----------------- None Robot Schematics ------------------ None Fabricated ------------ Nothing Alien Tech Used ----------------- None Achievements -------------- None Challenges ------------ None Game ------ Seed MolecularDeliveryNeutralizer Manual? 0 Play Time 00:09:23 Cumulative 29.0 hours Start 2024.09.21 @ 19:58:15 End 2024.09.21 @ 20:06:05 Sessions 1 Manual Loads 0 Difficulty Rogue Special Mode None Game No. 53 Rogue 53 Adventurer 0 Explorer 0 Win Type - Total 0 Types 0/0/0/0/0/0/0/0/0 Lore% 12 Gallery% 31 Achievement% 23 Wizard Run 0 Options --------- Layout 0 ASCII 0 Keyboard 0 Movement Arrows Keybinds 0 Fullscreen 2 Font 24/Smallcaps Map View 56x25 Zoom Use 52% Tactical HUD 0 Map Filters NONE Filters NONE Steam 1 RUN: 4cac6911-8805-41c3-aede-2aa6e710a309